[Event "December 12 Early 2023"]
[Site "https://www.chess.com"]
[Date "2023.12.12"]
[Round "8"]
[White "Sari, Yasin"]
[Black "Osmak, Yuliia"]
[Result "1-0"]
[Board "108"]
[TimeControl "180+1"]
[WhiteFideId "6320902"]
[BlackFideId "14101602"]
[WhiteElo "2421"]
[BlackElo "2533"]
[WhiteTeam "TUR"]
[BlackTeam "UKR"]
[WhiteClock "0:01:23"]
[BlackClock "0:00:47"]

1. d4 {[%clk 0:03:00]}  g6 {[%clk 0:02:56]} 2. e4 {[%clk 0:03:00]}  Bg7 {[%clk 0:02:56]} 3. Nc3 {[%clk 0:03:00]}  Nc6 {[%clk 0:02:55]} 4. Be3 {[%clk 0:02:54]}  e5 {[%clk 0:02:53]} 5. d5 {[%clk 0:02:50]}  Nd4 {[%clk 0:02:50]} 6. Nge2 {[%clk 0:02:50]}  c5 {[%clk 0:02:48]} 7. dxc6 {[%clk 0:02:50]}  Nxc6 {[%clk 0:02:43]} 8. Nb5 {[%clk 0:02:44]}  Nf6 {[%clk 0:02:08]} 9. Nd6+ {[%clk 0:02:40]}  Kf8 {[%clk 0:02:07]} 10. Nc3 {[%clk 0:02:33]}  h5 {[%clk 0:01:58]} 11. Bc4 {[%clk 0:02:27]}  Ng4 {[%clk 0:01:39]} 12. Nxf7 {[%clk 0:02:17]}  Nxe3 {[%clk 0:01:34]} 13. fxe3 {[%clk 0:02:14]}  Qh4+ {[%clk 0:01:30]} 14. g3 {[%clk 0:02:12]}  Qh3 {[%clk 0:01:29]} 15. Qf3 {[%clk 0:01:42]}  Ke7 {[%clk 0:01:22]} 16. Nxh8 {[%clk 0:01:32]}  Bxh8 {[%clk 0:01:20]} 17. O-O-O {[%clk 0:01:30]}  Nd8 {[%clk 0:00:52]} 18. Rhf1 {[%clk 0:01:27]}  Bg7 {[%clk 0:00:51]} 19. Nd5+ {[%clk 0:01:23]}  Kd6 {[%clk 0:00:47]} 20. Nf4+ {[%clk 0:01:23]} 1-0

[Event "December 12 Early 2023"]
[Site "https://www.chess.com"]
[Date "2023.12.12"]
[Round "8"]
[White "Rangel, Daniel"]
[Black "Matveeva, Olga"]
[Result "0-1"]
[Board "112"]
[TimeControl "180+1"]
[WhiteFideId "2124475"]
[BlackFideId "24107018"]
[WhiteElo "2503"]
[BlackElo "2411"]
[WhiteTeam "BRA"]
[BlackTeam "RUS"]
[WhiteClock "0:00:03"]
[BlackClock "0:00:05"]

1. d4 {[%clk 0:03:00]}  d5 {[%clk 0:02:59]} 2. Nf3 {[%clk 0:03:01]}  Nf6 {[%clk 0:02:59]} 3. e3 {[%clk 0:03:01]}  c5 {[%clk 0:02:57]} 4. b3 {[%clk 0:02:59]}  Nbd7 {[%clk 0:02:53]} 5. Bb2 {[%clk 0:02:58]}  g6 {[%clk 0:02:52]} 6. dxc5 {[%clk 0:02:54]}  Nxc5 {[%clk 0:02:43]} 7. Bxf6 {[%clk 0:02:52]}  exf6 {[%clk 0:02:44]} 8. Bb5+ {[%clk 0:02:52]}  Bd7 {[%clk 0:02:40]} 9. Bxd7+ {[%clk 0:02:51]}  Qxd7 {[%clk 0:02:39]} 10. O-O {[%clk 0:02:49]}  Bg7 {[%clk 0:02:38]} 11. Nc3 {[%clk 0:02:47]}  Rd8 {[%clk 0:02:37]} 12. Qd4 {[%clk 0:02:33]}  Ne6 {[%clk 0:02:34]} 13. Qa4 {[%clk 0:02:32]}  f5 {[%clk 0:02:30]} 14. Qb4 {[%clk 0:01:52]}  Qd6 {[%clk 0:02:18]} 15. Qxd6 {[%clk 0:01:49]}  Rxd6 {[%clk 0:02:19]} 16. Nb5 {[%clk 0:01:49]}  Rb6 {[%clk 0:02:00]} 17. Nbd4 {[%clk 0:01:48]}  f4 {[%clk 0:01:53]} 18. Rae1 {[%clk 0:01:29]}  fxe3 {[%clk 0:01:40]} 19. Rxe3 {[%clk 0:01:30]}  O-O {[%clk 0:01:32]} 20. Nxe6 {[%clk 0:01:21]}  fxe6 {[%clk 0:01:26]} 21. Rfe1 {[%clk 0:01:18]}  Rc8 {[%clk 0:01:20]} 22. Ng5 {[%clk 0:00:59]}  Rxc2 {[%clk 0:01:15]} 23. Nxe6 {[%clk 0:00:46]}  Rxa2 {[%clk 0:01:14]} 24. Nxg7 {[%clk 0:00:46]}  Kxg7 {[%clk 0:01:13]} 25. Re7+ {[%clk 0:00:46]}  Kh6 {[%clk 0:01:13]} 26. h4 {[%clk 0:00:44]}  Rxb3 {[%clk 0:01:11]} 27. Rf7 {[%clk 0:00:43]}  Kh5 {[%clk 0:00:34]} 28. Re5+ {[%clk 0:00:30]}  Kg4 {[%clk 0:00:24]} 29. Rxd5 {[%clk 0:00:09]}  Ra4 {[%clk 0:00:14]} 30. Rxh7 {[%clk 0:00:06]}  Rc4 {[%clk 0:00:08]} 31. Rg5+ {[%clk 0:00:06]}  Kf4 {[%clk 0:00:08]} 32. Rxg6 {[%clk 0:00:06]}  a5 {[%clk 0:00:07]} 33. h5 {[%clk 0:00:05]}  a4 {[%clk 0:00:07]} 34. Rf7+ {[%clk 0:00:05]}  Ke5 {[%clk 0:00:07]} 35. h6 {[%clk 0:00:04]}  Rh4 {[%clk 0:00:07]} 36. g3 {[%clk 0:00:04]}  Rh5 {[%clk 0:00:07]} 37. h7 {[%clk 0:00:03]}  a3 {[%clk 0:00:06]} 38. Rf8 {[%clk 0:00:02]}  a2 {[%clk 0:00:06]} 39. Ra8 {[%clk 0:00:02]}  Rb1+ {[%clk 0:00:05]} 40. Kg2 {[%clk 0:00:02]}  a1=Q {[%clk 0:00:05]} 41. Rxa1 {[%clk 0:00:02]}  Rxa1 {[%clk 0:00:06]} 42. Rg7 {[%clk 0:00:02]}  Rah1 {[%clk 0:00:05]} 43. Rxb7 {[%clk 0:00:01]}  Rxh7 {[%clk 0:00:05]} 44. Rb5+ {[%clk 0:00:02]}  Kd4 {[%clk 0:00:04]} 45. Rb4+ {[%clk 0:00:02]}  Kc5 {[%clk 0:00:04]} 46. Rf4 {[%clk 0:00:02]}  R1h2+ {[%clk 0:00:04]} 47. Kf3 {[%clk 0:00:03]}  Kd5 {[%clk 0:00:04]} 48. Rf5+ {[%clk 0:00:03]}  Ke6 {[%clk 0:00:04]} 49. Rf4 {[%clk 0:00:04]}  Rf7 {[%clk 0:00:04]} 50. Rxf7 {[%clk 0:00:04]}  Kxf7 {[%clk 0:00:05]} 51. Ke3 {[%clk 0:00:04]}  Kf6 {[%clk 0:00:05]} 52. g4 {[%clk 0:00:03]}  Kg5 {[%clk 0:00:05]} 53. f3 {[%clk 0:00:04]}  Rh3 {[%clk 0:00:04]} 54. Ke4 {[%clk 0:00:04]}  Rh1 {[%clk 0:00:04]} 55. Ke3 {[%clk 0:00:03]}  Rf1 {[%clk 0:00:03]} 56. Ke2 {[%clk 0:00:03]}  Ra1 {[%clk 0:00:03]} 57. Kf2 {[%clk 0:00:03]}  Ra4 {[%clk 0:00:03]} 58. Kg3 {[%clk 0:00:03]}  Ra3 {[%clk 0:00:03]} 59. Kf2 {[%clk 0:00:03]}  Kf4 {[%clk 0:00:04]} 60. Kg2 {[%clk 0:00:03]}  Rxf3 {[%clk 0:00:04]} 61. g5 {[%clk 0:00:03]}  Rg3+ {[%clk 0:00:05]} 0-1

[Event "December 12 Early 2023"]
[Site "https://www.chess.com"]
[Date "2023.12.12"]
[Round "8"]
[White "Krzywda, Andrzej"]
[Black "Bach Ngoc Thuy Duong"]
[Result "1-0"]
[Board "113"]
[TimeControl "180+1"]
[WhiteFideId "1114565"]
[BlackFideId "12408956"]
[WhiteElo "2503"]
[BlackElo "2407"]
[WhiteTeam "POL"]
[BlackTeam "VIE"]
[WhiteClock "0:00:07"]
[BlackClock "0:00:00"]

1. e4 {[%clk 0:03:00]}  c5 {[%clk 0:02:59]} 2. Nf3 {[%clk 0:03:00]}  d6 {[%clk 0:03:00]} 3. d4 {[%clk 0:03:01]}  cxd4 {[%clk 0:03:00]} 4. Nxd4 {[%clk 0:03:02]}  Nf6 {[%clk 0:03:01]} 5. Nc3 {[%clk 0:03:02]}  a6 {[%clk 0:03:02]} 6. Be3 {[%clk 0:03:03]}  e5 {[%clk 0:03:02]} 7. Nb3 {[%clk 0:03:03]}  Be6 {[%clk 0:03:02]} 8. h3 {[%clk 0:03:04]}  Nbd7 {[%clk 0:02:51]} 9. Qf3 {[%clk 0:03:04]}  b5 {[%clk 0:02:46]} 10. g4 {[%clk 0:03:02]}  Nb6 {[%clk 0:02:45]} 11. O-O-O {[%clk 0:02:58]}  Qc7 {[%clk 0:02:42]} 12. g5 {[%clk 0:02:53]}  Nfd7 {[%clk 0:02:41]} 13. Kb1 {[%clk 0:02:42]}  Be7 {[%clk 0:02:28]} 14. h4 {[%clk 0:02:42]}  Rc8 {[%clk 0:02:25]} 15. Bd3 {[%clk 0:02:30]}  Bc4 {[%clk 0:02:19]} 16. h5 {[%clk 0:02:11]}  b4 {[%clk 0:01:43]} 17. Ne2 {[%clk 0:02:05]}  d5 {[%clk 0:01:37]} 18. g6 {[%clk 0:01:55]}  Nf6 {[%clk 0:01:05]} 19. gxf7+ {[%clk 0:01:47]}  Kxf7 {[%clk 0:01:06]} 20. Ng3 {[%clk 0:01:16]}  Na4 {[%clk 0:01:05]} 21. Rc1 {[%clk 0:01:02]}  Qb7 {[%clk 0:00:49]} 22. Nf5 {[%clk 0:00:52]}  dxe4 {[%clk 0:00:42]} 23. Qg2 {[%clk 0:00:52]}  Rhg8 {[%clk 0:00:23]} 24. Bxc4+ {[%clk 0:00:38]}  Rxc4 {[%clk 0:00:22]} 25. Rhd1 {[%clk 0:00:37]}  Qb5 {[%clk 0:00:19]} 26. Rd6 {[%clk 0:00:29]}  Qb8 {[%clk 0:00:09]} 27. Rxa6 {[%clk 0:00:23]}  Qc8 {[%clk 0:00:09]} 28. Nxe7 {[%clk 0:00:17]}  Qxa6 {[%clk 0:00:07]} 29. Nxg8 {[%clk 0:00:17]}  Kxg8 {[%clk 0:00:07]} 30. Rg1 {[%clk 0:00:16]}  Ne8 {[%clk 0:00:06]} 31. h6 {[%clk 0:00:11]}  g6 {[%clk 0:00:06]} 32. Qf1 {[%clk 0:00:11]}  Qc6 {[%clk 0:00:05]} 33. Qd1 {[%clk 0:00:11]}  Kf7 {[%clk 0:00:01]} 34. Re1 {[%clk 0:00:11]}  Nf6 {[%clk 0:00:01]} 35. Bg5 {[%clk 0:00:11]}  Nd5 {[%clk 0:00:00]} 36. Bd2 {[%clk 0:00:07]} 1-0

[Event "December 12 Early 2023"]
[Site "https://www.chess.com"]
[Date "2023.12.12"]
[Round "8"]
[White "Donskov, Anatoly"]
[Black "Herman, Matthew"]
[Result "1-0"]
[Board "114"]
[TimeControl "180+1"]
[WhiteFideId "24143413"]
[BlackFideId "2028964"]
[WhiteElo "2403"]
[BlackElo "2502"]
[WhiteTeam "RUS"]
[BlackTeam "USA"]
[WhiteClock "0:00:14"]
[BlackClock "0:00:04"]

1. e4 {[%clk 0:03:00]}  e5 {[%clk 0:02:59]} 2. Nf3 {[%clk 0:03:00]}  Nc6 {[%clk 0:03:00]} 3. Bb5 {[%clk 0:03:00]}  a6 {[%clk 0:03:00]} 4. Ba4 {[%clk 0:03:01]}  Nf6 {[%clk 0:03:00]} 5. Qe2 {[%clk 0:03:01]}  b5 {[%clk 0:02:53]} 6. Bb3 {[%clk 0:03:01]}  Bc5 {[%clk 0:02:51]} 7. c3 {[%clk 0:03:00]}  O-O {[%clk 0:02:50]} 8. O-O {[%clk 0:03:00]}  Re8 {[%clk 0:02:42]} 9. Rd1 {[%clk 0:02:57]}  d5 {[%clk 0:02:27]} 10. d3 {[%clk 0:02:57]}  h6 {[%clk 0:02:18]} 11. Nbd2 {[%clk 0:02:57]}  Qd6 {[%clk 0:01:59]} 12. Nf1 {[%clk 0:02:55]}  Bb6 {[%clk 0:01:17]} 13. Ng3 {[%clk 0:02:41]}  Na5 {[%clk 0:00:48]} 14. Bc2 {[%clk 0:02:39]}  c5 {[%clk 0:00:48]} 15. h3 {[%clk 0:02:33]}  Be6 {[%clk 0:00:34]} 16. Nh4 {[%clk 0:02:30]}  Qf8 {[%clk 0:00:16]} 17. Qf3 {[%clk 0:02:28]}  dxe4 {[%clk 0:00:08]} 18. dxe4 {[%clk 0:02:28]}  Nh7 {[%clk 0:00:08]} 19. Nhf5 {[%clk 0:02:23]}  Rad8 {[%clk 0:00:06]} 20. Re1 {[%clk 0:02:20]}  c4 {[%clk 0:00:05]} 21. Nh5 {[%clk 0:02:03]}  Bxf5 {[%clk 0:00:05]} 22. exf5 {[%clk 0:02:03]}  f6 {[%clk 0:00:04]} 23. h4 {[%clk 0:02:00]}  Qe7 {[%clk 0:00:03]} 24. Be4 {[%clk 0:01:59]}  Kh8 {[%clk 0:00:02]} 25. Bd5 {[%clk 0:01:51]}  Rd6 {[%clk 0:00:02]} 26. Be6 {[%clk 0:01:50]}  Red8 {[%clk 0:00:02]} 27. Qg4 {[%clk 0:01:43]}  Nf8 {[%clk 0:00:02]} 28. Bxh6 {[%clk 0:00:53]}  Nxe6 {[%clk 0:00:02]} 29. fxe6 {[%clk 0:00:53]}  gxh6 {[%clk 0:00:02]} 30. Qg6 {[%clk 0:00:54]}  Rxe6 {[%clk 0:00:03]} 31. Ng3 {[%clk 0:00:43]}  Rg8 {[%clk 0:00:03]} 32. Qh5 {[%clk 0:00:43]}  Qh7 {[%clk 0:00:03]} 33. Kf1 {[%clk 0:00:38]}  Qg6 {[%clk 0:00:03]} 34. Qf3 {[%clk 0:00:37]}  Nc6 {[%clk 0:00:04]} 35. Rad1 {[%clk 0:00:37]}  Ne7 {[%clk 0:00:04]} 36. Rd7 {[%clk 0:00:36]}  f5 {[%clk 0:00:04]} 37. h5 {[%clk 0:00:28]}  Qf6 {[%clk 0:00:05]} 38. Qb7 {[%clk 0:00:28]}  e4 {[%clk 0:00:04]} 39. Ne2 {[%clk 0:00:22]}  Qg5 {[%clk 0:00:04]} 40. g3 {[%clk 0:00:22]}  e3 {[%clk 0:00:04]} 41. Nf4 {[%clk 0:00:22]}  Rf6 {[%clk 0:00:03]} 42. Rxe7 {[%clk 0:00:22]}  Rg7 {[%clk 0:00:03]} 43. Ng6+ {[%clk 0:00:15]}  Rfxg6 {[%clk 0:00:03]} 44. hxg6 {[%clk 0:00:14]}  Qxg6 {[%clk 0:00:04]} 45. Rxg7 {[%clk 0:00:13]}  Qxg7 {[%clk 0:00:04]} 46. Qxb6 {[%clk 0:00:14]}  exf2 {[%clk 0:00:04]} 47. Qxf2 {[%clk 0:00:14]} 1-0

[Event "December 12 Early 2023"]
[Site "https://www.chess.com"]
[Date "2023.12.12"]
[Round "8"]
[White "Dinu, Dumitru-Daniel"]
[Black "Balla, Tamas-Kristof"]
[Result "1-0"]
[Board "115"]
[TimeControl "180+1"]
[WhiteFideId "1208403"]
[BlackFideId "1208497"]
[WhiteElo "2502"]
[BlackElo "2395"]
[WhiteTeam "ROU"]
[BlackTeam "ROU"]
[WhiteClock "0:01:01"]
[BlackClock "0:01:47"]

1. e4 {[%clk 0:03:00]}  c5 {[%clk 0:03:00]} 2. Nf3 {[%clk 0:03:00]}  Nc6 {[%clk 0:03:00]} 3. d4 {[%clk 0:02:54]}  cxd4 {[%clk 0:03:01]} 4. Nxd4 {[%clk 0:02:55]}  e5 {[%clk 0:03:01]} 5. Nb5 {[%clk 0:02:53]}  d6 {[%clk 0:03:01]} 6. c4 {[%clk 0:02:37]}  Be7 {[%clk 0:03:00]} 7. N1c3 {[%clk 0:02:36]}  a6 {[%clk 0:02:56]} 8. Na3 {[%clk 0:02:36]}  f5 {[%clk 0:02:57]} 9. Bd3 {[%clk 0:02:34]}  f4 {[%clk 0:02:57]} 10. g3 {[%clk 0:02:27]}  Nh6 {[%clk 0:02:57]} 11. Qh5+ {[%clk 0:02:18]}  Nf7 {[%clk 0:02:33]} 12. gxf4 {[%clk 0:02:14]}  exf4 {[%clk 0:02:32]} 13. Bxf4 {[%clk 0:02:10]}  Ne5 {[%clk 0:02:29]} 14. Bxe5 {[%clk 0:01:38]}  dxe5 {[%clk 0:02:30]} 15. Nd5 {[%clk 0:01:38]}  Bxa3 {[%clk 0:02:12]} 16. bxa3 {[%clk 0:01:39]}  O-O {[%clk 0:02:13]} 17. Rg1 {[%clk 0:01:33]}  Kh8 {[%clk 0:01:58]} 18. Ke2 {[%clk 0:01:23]}  b5 {[%clk 0:01:51]} 19. c5 {[%clk 0:01:05]}  Bb7 {[%clk 0:01:50]} 20. Rg3 {[%clk 0:01:03]}  Bxd5 {[%clk 0:01:48]} 21. exd5 {[%clk 0:01:03]}  e4 {[%clk 0:01:47]} 22. Bxe4 {[%clk 0:01:01]}  Re8 {[%clk 0:01:47]} 23. Qxh7# {[%clk 0:01:01]} 1-0

[Event "December 12 Early 2023"]
[Site "https://www.chess.com"]
[Date "2023.12.12"]
[Round "8"]
[White "Wanyama, Harold"]
[Black "Zhuk, Valeriy"]
[Result "1-0"]
[Board "117"]
[TimeControl "180+1"]
[WhiteFideId "10000380"]
[BlackFideId "24151254"]
[WhiteElo "2499"]
[BlackElo "2378"]
[WhiteTeam "UGA"]
[BlackTeam "RUS"]
[WhiteClock "0:01:42"]
[BlackClock "0:00:00"]

1. d4 {[%clk 0:03:00]}  d5 {[%clk 0:02:59]} 2. c4 {[%clk 0:03:00]}  c6 {[%clk 0:02:59]} 3. Nc3 {[%clk 0:03:00]}  Nf6 {[%clk 0:02:59]} 4. Nf3 {[%clk 0:03:01]}  e6 {[%clk 0:02:56]} 5. e3 {[%clk 0:03:01]}  Nbd7 {[%clk 0:02:56]} 6. Bd3 {[%clk 0:03:01]}  dxc4 {[%clk 0:02:56]} 7. Bxc4 {[%clk 0:03:01]}  b5 {[%clk 0:02:57]} 8. Bd3 {[%clk 0:03:01]}  Bb7 {[%clk 0:02:57]} 9. e4 {[%clk 0:03:01]}  b4 {[%clk 0:02:41]} 10. Na4 {[%clk 0:03:00]}  Be7 {[%clk 0:02:21]} 11. e5 {[%clk 0:02:59]}  Nd5 {[%clk 0:02:21]} 12. O-O {[%clk 0:02:59]}  c5 {[%clk 0:02:08]} 13. dxc5 {[%clk 0:02:57]}  Nxc5 {[%clk 0:02:08]} 14. Nxc5 {[%clk 0:02:58]}  Bxc5 {[%clk 0:02:08]} 15. Re1 {[%clk 0:02:58]}  Qb6 {[%clk 0:02:01]} 16. Qe2 {[%clk 0:02:57]}  a6 {[%clk 0:01:42]} 17. Ng5 {[%clk 0:02:56]}  h6 {[%clk 0:01:39]} 18. Ne4 {[%clk 0:02:54]}  Be7 {[%clk 0:01:29]} 19. Bd2 {[%clk 0:02:50]}  O-O {[%clk 0:01:27]} 20. Qg4 {[%clk 0:02:47]}  Kh8 {[%clk 0:01:18]} 21. Qh5 {[%clk 0:02:44]}  f5 {[%clk 0:00:17]} 22. Bxh6 {[%clk 0:02:39]}  gxh6 {[%clk 0:00:17]} 23. Qxh6+ {[%clk 0:02:38]}  Kg8 {[%clk 0:00:17]} 24. Qg6+ {[%clk 0:02:27]}  Kh8 {[%clk 0:00:17]} 25. Ng3 {[%clk 0:02:18]}  Bc5 {[%clk 0:00:07]} 26. Re2 {[%clk 0:02:13]}  Qc7 {[%clk 0:00:07]} 27. Qxe6 {[%clk 0:02:05]}  Rae8 {[%clk 0:00:06]} 28. Qh6+ {[%clk 0:02:03]}  Qh7 {[%clk 0:00:06]} 29. Qxh7+ {[%clk 0:02:03]}  Kxh7 {[%clk 0:00:04]} 30. Bxf5+ {[%clk 0:02:01]}  Kg7 {[%clk 0:00:05]} 31. Rc1 {[%clk 0:01:52]}  Bb6 {[%clk 0:00:05]} 32. Rc4 {[%clk 0:01:48]}  Ne7 {[%clk 0:00:00]} 33. Bd7 {[%clk 0:01:42]} 1-0

[Event "December 12 Early 2023"]
[Site "https://www.chess.com"]
[Date "2023.12.12"]
[Round "8"]
[White "Andrews, Todd"]
[Black "Topalov, Aleksandar"]
[Result "0-1"]
[Board "118"]
[TimeControl "180+1"]
[WhiteFideId "2012456"]
[BlackFideId "925659"]
[WhiteElo "2498"]
[BlackElo "2373"]
[WhiteTeam "USA"]
[BlackTeam "SRB"]
[WhiteClock "0:00:08"]
[BlackClock "0:00:03"]

1. e4 {[%clk 0:03:00]}  e6 {[%clk 0:02:58]} 2. d4 {[%clk 0:03:00]}  d5 {[%clk 0:02:58]} 3. Nc3 {[%clk 0:03:01]}  Bb4 {[%clk 0:02:55]} 4. e5 {[%clk 0:03:01]}  Qd7 {[%clk 0:02:54]} 5. Bd2 {[%clk 0:02:59]}  b6 {[%clk 0:02:54]} 6. Bb5 {[%clk 0:02:59]}  c6 {[%clk 0:02:53]} 7. Ba4 {[%clk 0:03:00]}  Ba6 {[%clk 0:02:52]} 8. Nce2 {[%clk 0:02:59]}  Be7 {[%clk 0:02:51]} 9. c3 {[%clk 0:02:56]}  g6 {[%clk 0:02:50]} 10. Nf3 {[%clk 0:02:53]}  h5 {[%clk 0:02:50]} 11. O-O {[%clk 0:02:47]}  Nh6 {[%clk 0:02:49]} 12. Re1 {[%clk 0:02:46]}  Nf5 {[%clk 0:02:49]} 13. b4 {[%clk 0:02:39]}  Bb5 {[%clk 0:02:43]} 14. Bc2 {[%clk 0:02:37]}  c5 {[%clk 0:02:42]} 15. a4 {[%clk 0:02:30]}  Bxe2 {[%clk 0:02:39]} 16. Qxe2 {[%clk 0:02:28]}  cxd4 {[%clk 0:02:38]} 17. cxd4 {[%clk 0:02:28]}  Nc6 {[%clk 0:02:34]} 18. Bxf5 {[%clk 0:02:23]}  gxf5 {[%clk 0:02:34]} 19. Rab1 {[%clk 0:02:15]}  Rg8 {[%clk 0:02:34]} 20. Rec1 {[%clk 0:02:12]}  Rg4 {[%clk 0:02:31]} 21. Qd3 {[%clk 0:02:05]}  h4 {[%clk 0:02:20]} 22. h3 {[%clk 0:02:05]}  Re4 {[%clk 0:02:17]} 23. Bc3 {[%clk 0:01:55]}  a5 {[%clk 0:02:12]} 24. bxa5 {[%clk 0:01:50]}  bxa5 {[%clk 0:02:10]} 25. Nd2 {[%clk 0:01:50]}  Rf4 {[%clk 0:02:02]} 26. Nb3 {[%clk 0:01:40]}  Nb4 {[%clk 0:01:59]} 27. Qb5 {[%clk 0:01:24]}  Qxb5 {[%clk 0:01:43]} 28. axb5 {[%clk 0:01:25]}  Nd3 {[%clk 0:01:34]} 29. Rc2 {[%clk 0:01:17]}  a4 {[%clk 0:01:33]} 30. Ra1 {[%clk 0:01:05]}  Kd7 {[%clk 0:01:25]} 31. Rca2 {[%clk 0:00:55]}  f6 {[%clk 0:00:47]} 32. Rxa4 {[%clk 0:00:44]}  Rxa4 {[%clk 0:00:45]} 33. Rxa4 {[%clk 0:00:45]}  Rxf2 {[%clk 0:00:41]} 34. Ra7+ {[%clk 0:00:44]}  Ke8 {[%clk 0:00:40]} 35. exf6 {[%clk 0:00:41]}  Bxf6 {[%clk 0:00:38]} 36. Nc5 {[%clk 0:00:41]}  Rc2 {[%clk 0:00:34]} 37. Nxd3 {[%clk 0:00:34]}  Rxc3 {[%clk 0:00:30]} 38. Ne5 {[%clk 0:00:34]}  Bxe5 {[%clk 0:00:28]} 39. dxe5 {[%clk 0:00:35]}  Rb3 {[%clk 0:00:29]} 40. Ra6 {[%clk 0:00:31]}  Ke7 {[%clk 0:00:28]} 41. Ra7+ {[%clk 0:00:31]}  Ke8 {[%clk 0:00:28]} 42. Rb7 {[%clk 0:00:31]}  Re3 {[%clk 0:00:23]} 43. b6 {[%clk 0:00:30]}  Rxe5 {[%clk 0:00:23]} 44. Rh7 {[%clk 0:00:26]}  Re1+ {[%clk 0:00:21]} 45. Kf2 {[%clk 0:00:26]}  Rb1 {[%clk 0:00:21]} 46. b7 {[%clk 0:00:24]}  Kd8 {[%clk 0:00:21]} 47. Kf3 {[%clk 0:00:19]}  e5 {[%clk 0:00:21]} 48. Ke3 {[%clk 0:00:20]}  Rb3+ {[%clk 0:00:20]} 49. Kd2 {[%clk 0:00:20]}  f4 {[%clk 0:00:20]} 50. Kc2 {[%clk 0:00:19]}  Rb5 {[%clk 0:00:20]} 51. Kd3 {[%clk 0:00:20]}  Rb3+ {[%clk 0:00:19]} 52. Kc2 {[%clk 0:00:20]}  Rb5 {[%clk 0:00:19]} 53. Kc3 {[%clk 0:00:20]}  Rb1 {[%clk 0:00:17]} 54. Rg7 {[%clk 0:00:19]}  Rb6 {[%clk 0:00:16]} 55. Kd3 {[%clk 0:00:19]}  Rb5 {[%clk 0:00:16]} 56. Kc2 {[%clk 0:00:19]}  Rb6 {[%clk 0:00:11]} 57. Rf7 {[%clk 0:00:18]}  Rb5 {[%clk 0:00:11]} 58. Rh7 {[%clk 0:00:19]}  Rb6 {[%clk 0:00:10]} 59. Kc3 {[%clk 0:00:18]}  Rb5 {[%clk 0:00:11]} 60. Kd3 {[%clk 0:00:18]}  Rb6 {[%clk 0:00:10]} 61. Ke2 {[%clk 0:00:18]}  Rb5 {[%clk 0:00:10]} 62. Kf3 {[%clk 0:00:18]}  Rb4 {[%clk 0:00:10]} 63. Kg4 {[%clk 0:00:19]}  d4 {[%clk 0:00:10]} 64. Kf3 {[%clk 0:00:18]}  d3 {[%clk 0:00:08]} 65. Kf2 {[%clk 0:00:16]}  e4 {[%clk 0:00:07]} 66. Ke1 {[%clk 0:00:15]}  Rb2 {[%clk 0:00:07]} 67. Rh8+ {[%clk 0:00:12]}  Kc7 {[%clk 0:00:05]} 68. Re8 {[%clk 0:00:12]}  e3 {[%clk 0:00:04]} 69. Re7+ {[%clk 0:00:10]}  Kb8 {[%clk 0:00:03]} 70. Re8+ {[%clk 0:00:08]}  Kxb7 {[%clk 0:00:03]} 71. Rxe3 {[%clk 0:00:07]}  Kc7 {[%clk 0:00:02]} 72. Kd1 {[%clk 0:00:08]}  fxe3 {[%clk 0:00:02]} 73. Kc1 {[%clk 0:00:09]}  Rc2+ {[%clk 0:00:02]} 74. Kb1 {[%clk 0:00:09]}  e2 {[%clk 0:00:02]} 75. g3 {[%clk 0:00:08]}  e1=Q# {[%clk 0:00:03]} 0-1

[Event "December 12 Early 2023"]
[Site "https://www.chess.com"]
[Date "2023.12.12"]
[Round "8"]
[White "Zaksaite, Salomeja"]
[Black "Kraiouchkine, Nikita"]
[Result "0-1"]
[Board "119"]
[TimeControl "180+1"]
[WhiteFideId "12801496"]
[BlackFideId "2607140"]
[WhiteElo "2368"]
[BlackElo "2497"]
[WhiteTeam "LTU"]
[BlackTeam "CAN"]
[WhiteClock "0:00:00"]
[BlackClock "0:00:04"]

1. e4 {[%clk 0:03:00]}  e5 {[%clk 0:02:59]} 2. Nf3 {[%clk 0:03:00]}  Nc6 {[%clk 0:02:59]} 3. d4 {[%clk 0:02:59]}  exd4 {[%clk 0:02:59]} 4. Nxd4 {[%clk 0:03:00]}  Nf6 {[%clk 0:02:58]} 5. Nxc6 {[%clk 0:02:58]}  bxc6 {[%clk 0:02:58]} 6. Bd3 {[%clk 0:02:59]}  d5 {[%clk 0:02:54]} 7. exd5 {[%clk 0:02:59]}  cxd5 {[%clk 0:02:51]} 8. O-O {[%clk 0:03:00]}  Be7 {[%clk 0:02:46]} 9. c4 {[%clk 0:02:59]}  O-O {[%clk 0:02:37]} 10. cxd5 {[%clk 0:02:57]}  Qxd5 {[%clk 0:02:35]} 11. Nc3 {[%clk 0:02:55]}  Qa5 {[%clk 0:02:14]} 12. Qc2 {[%clk 0:02:00]}  Bb7 {[%clk 0:02:08]} 13. Ne4 {[%clk 0:01:45]}  Nd5 {[%clk 0:01:56]} 14. Bd2 {[%clk 0:01:41]}  Qb6 {[%clk 0:01:56]} 15. Rac1 {[%clk 0:01:37]}  Rad8 {[%clk 0:01:44]} 16. Rfe1 {[%clk 0:01:18]}  h6 {[%clk 0:01:31]} 17. a3 {[%clk 0:01:16]}  Rfe8 {[%clk 0:01:26]} 18. b4 {[%clk 0:01:14]}  Bf8 {[%clk 0:01:22]} 19. Nc5 {[%clk 0:01:07]}  Ba8 {[%clk 0:01:11]} 20. Bh7+ {[%clk 0:01:00]}  Kh8 {[%clk 0:01:10]} 21. Bf5 {[%clk 0:00:48]}  Rxe1+ {[%clk 0:00:39]} 22. Rxe1 {[%clk 0:00:49]}  Nf6 {[%clk 0:00:29]} 23. Be3 {[%clk 0:00:38]}  Qc6 {[%clk 0:00:28]} 24. Bh3 {[%clk 0:00:35]}  Ng4 {[%clk 0:00:17]} 25. Bf4 {[%clk 0:00:26]}  Bxc5 {[%clk 0:00:08]} 26. bxc5 {[%clk 0:00:24]}  Qd5 {[%clk 0:00:05]} 27. f3 {[%clk 0:00:20]}  Nf6 {[%clk 0:00:05]} 28. Be5 {[%clk 0:00:13]}  Qc6 {[%clk 0:00:05]} 29. Bf5 {[%clk 0:00:11]}  Re8 {[%clk 0:00:02]} 30. Qc3 {[%clk 0:00:10]}  Bb7 {[%clk 0:00:02]} 31. Kf2 {[%clk 0:00:08]}  Nd5 {[%clk 0:00:01]} 32. Qd4 {[%clk 0:00:07]}  f6 {[%clk 0:00:01]} 33. Bg3 {[%clk 0:00:05]}  Rd8 {[%clk 0:00:01]} 34. Qc4 {[%clk 0:00:04]}  Nb6 {[%clk 0:00:01]} 35. Qc2 {[%clk 0:00:04]}  Nd5 {[%clk 0:00:02]} 36. Be4 {[%clk 0:00:04]}  Qa6 {[%clk 0:00:02]} 37. Rd1 {[%clk 0:00:03]}  c6 {[%clk 0:00:02]} 38. Qd3 {[%clk 0:00:02]}  Qa5 {[%clk 0:00:01]} 39. Bxd5 {[%clk 0:00:02]}  Rxd5 {[%clk 0:00:02]} 40. Qe2 {[%clk 0:00:02]}  Qxc5+ {[%clk 0:00:02]} 41. Kf1 {[%clk 0:00:02]}  Rxd1+ {[%clk 0:00:03]} 42. Qxd1 {[%clk 0:00:02]}  Ba6+ {[%clk 0:00:03]} 43. Ke1 {[%clk 0:00:00]}  Qe3+ {[%clk 0:00:04]} 0-1